fUSD/lending_fUSD_20251204
["ID","MTS","AMOUNT","RATE_DAILY","PERIOD"]
[396247576,1764874245367,-150.0,0.000304,7]
[396247579,1764874245377,-150.0,0.000304,7]
[396247581,1764874245387,-150.0,0.000304,7]
[396247582,1764874245398,-1000.0,0.000304,2]
[396247584,1764874245409,-1000.0,0.00030517,2]
[396247586,1764874245418,-150.0,0.00030523,7]
[396247588,1764874245427,-150.0,0.00030523,7]
[396247590,1764874245436,-153.0,0.00030538,2]
[396247591,1764874245446,-228.0,0.00030734,2]
[396247592,1764874245455,-150.0,0.00030769,7]
[396247593,1764874245464,-150.0,0.00030769,7]
[396247594,1764874245474,-1000.0,0.00030791,2]
[396247595,1764874245483,-150.0,0.000308,7]
[396247596,1764874245493,-1000.0,0.00030932,2]
[396247597,1764874245502,-150.0,0.00030933,7]
[396247598,1764874245512,-150.0,0.00030933,7]
[396247599,1764874245522,-150.0,0.00031015,7]
[396247600,1764874245531,-150.0,0.00031015,7]
[396247601,1764874245541,-950.35793141,0.0003104,2]
[396247602,1764874245551,-1000.0,0.00031065,2]
[396247603,1764874245561,-500.0,0.00031178,14]
[396247604,1764874245570,-150.0,0.000312,7]
[396247605,1764874245580,-150.0,0.000312,7]
[396247606,1764874245589,-150.0,0.000312,7]
[396247607,1764874245599,-1000.0,0.000312,2]
[396247608,1764874245609,-150.0,0.00031262,7]
[396247609,1764874245619,-150.0,0.00031262,7]
[396247610,1764874245628,-1000.0,0.00031339,2]
[396247611,1764874245638,-150.0,0.00031467,7]
[396247612,1764874245647,-150.0,0.00031467,7]
[396247613,1764874245656,-168.0,0.000315,2]
[396247616,1764874245833,-150.0,0.00031508,7]
[396247617,1764874245843,-150.0,0.00031508,7]
[396247618,1764874245853,-1194.0,0.00031565,2]
[396247619,1764874245862,-909.0,0.00031565,2]
[396247620,1764874245872,-150.0,0.000316,7]
[396247621,1764874245881,-1000.0,0.00031613,2]
[396247622,1764874245890,-1097.0,0.00031663,5]
[396247623,1764874245899,-150.0,0.00031754,7]
[396247624,1764874245909,-150.0,0.00031754,7]
[396247625,1764874245918,-6423.2609,0.000318,2]
[396247626,1764874245935,-1971.0,0.000318,2]
[396247627,1764874245945,-2000.0,0.0003184,3]
[396247628,1764874245954,-2000.0,0.0003184,3]
[396247629,1764874245963,-1000.0,0.00031887,2]
[396247630,1764874245973,-2563.22685364,0.000319,2]
[396247631,1764874245982,-1494.1315996,0.000319,2]
[396247632,1764874245991,-612.77260274,0.000319,2]
[396247633,1764874246000,-8402.00564156,0.000319,2]
[396247634,1764874246009,-171.67608162,0.0003199,2]
[396247635,1764874246019,-151.0,0.00031997,7]
[396247636,1764874246028,-151.0,0.00031997,7]
[396247637,1764874246037,-151.0,0.00031997,7]
[396247638,1764874246048,-151.0,0.00031997,7]
[396247639,1764874246057,-151.0,0.00031997,7]
[396247640,1764874246066,-151.0,0.00031997,7]
[396247641,1764874246076,-151.0,0.00031997,7]
[396247642,1764874246085,-151.0,0.00031997,7]
[396247643,1764874246094,-151.0,0.00031997,7]
[396247644,1764874246104,-151.0,0.00031997,7]
[396247645,1764874246117,-204.61421178,0.00031997,7]
[396247646,1764874246127,-263.74757935,0.00031999,10]
[396247647,1764874246136,-150.0,0.00032,7]
[396247648,1764874246145,-150.0,0.00032,7]
[396247649,1764874246155,-150.0,0.00032,7]
[396247650,1764874246164,-150.00000001,0.00032,7]
[396247651,1764874246173,-150.0,0.00032,7]
[396247652,1764874246183,-150.0,0.00032,7]
[396247653,1764874246193,-150.0,0.00032,7]
[396247654,1764874246202,-528397.0780806,0.00032,2]
[396247676,1764874246801,-70462.61012037,0.00032,2]
[396247677,1764874246815,-4024.0199998,0.00032,2]
[396247678,1764874246827,-1671.79743075,0.00032,2]
[396247679,1764874246838,-1495.78179057,0.00032,2]
[396247680,1764874246849,-777.12919889,0.00032,2]
[396247681,1764874247047,-0.07200597,0.00016,2]
[396247682,1764874249166,-500.0,0.00016999,2]
[396247683,1764874249177,-500.0,0.00016999,2]
[396247684,1764874249186,-500.0,0.00016999,2]
[396247685,1764874249198,-500.0,0.00016999,2]
[396247686,1764874249207,-500.0,0.00016999,2]
[396247687,1764874249217,-500.0,0.00016999,2]
[396247688,1764874249227,-500.0,0.00016999,2]
[396247689,1764874249236,-298.6420698,0.00016999,2]
[396247690,1764874249245,-500.0,0.00016999,2]
[396247691,1764874249255,-500.0,0.00016999,2]
[396247692,1764874249264,-500.0,0.00016999,2]
[396247693,1764874249274,-151.0,0.00017,2]
[396247694,1764874249283,-151.0,0.00018,2]
[396247695,1764874249293,-159.05930938,0.00024658,2]
[396247696,1764874249302,-151.0,0.00024792,7]
[396247697,1764874249312,-162.52615634,0.00028806,14]
[396247698,1764874249321,-642.66358952,0.00029999,2]
[396247699,1764874249330,-25024.51378614,0.00032,2]
[396247700,1764874249429,-709520.61164061,0.00032,2]
[396247701,1764874249441,-16827.24410685,0.00032,2]
[396247702,1764874249452,-11455.88315591,0.00032,2]
[396247703,1764874249464,-259.83510721,0.00032,2]
[396247704,1764874249475,-378.87943479,0.00032,2]
[396247705,1764874249547,-872.26117996,0.00032,2]
[396247706,1764874249558,-1266.61610659,0.00032,2]
[396247707,1764874249570,-12153.10710657,0.00032,2]
[396247708,1764874252707,-500.0,0.00016999,2]
[396247709,1764874252723,-162.52615634,0.00031387,17]
[396247710,1764874252732,-85781.23034354,0.00032,2]
[396247711,1764874253081,-912.15864265,0.00032,2]
[396247712,1764874253134,-2236.39820028,0.00032,2]
[396247713,1764874253146,-607.96405772,0.00032,2]
[396247714,1764874269735,300.0,0.000176,119]
[396247785,1764875113068,150.0,0.00017946,120]
[396247884,1764875433044,-409.66,0.00013699,2]
[396247885,1764875433054,-263.0,0.00013699,2]
[396247886,1764875433063,-250.0,0.0001456,2]
[396247887,1764875433074,-250.0,0.00015068,2]
[396247888,1764875433084,-250.0,0.00015157,2]
[396247889,1764875433094,-154.66980164,0.000155,2]
[396247890,1764875433104,-215.958,0.00015582,2]
[396247891,1764875433115,-1202.905,0.00015582,2]
[396247892,1764875433124,-500.0,0.000156,2]
[396247893,1764875433134,-154.66980164,0.000157,2]
[396247894,1764875433144,-22.43446176,0.00015773,2]
[396247895,1764875433156,-294.39544739,0.00015773,2]
[396247896,1764875433167,-151.0,0.00015797,2]
[396247897,1764875433177,-151.0,0.00015797,2]
[396247898,1764875433187,-300.0,0.00015798,2]
[396247899,1764875433196,-1200.0,0.00015798,2]
[396247900,1764875433206,-432.0,0.00015799,2]
[396247901,1764875433215,-226.0,0.00015799,2]
[396247902,1764875433224,-421.3507696,0.000158,4]
[396247903,1764875433234,-13657.40215598,0.000158,2]
[396247904,1764875433325,-6469.16248945,0.000158,2]
[396247905,1764875433336,-652.30130565,0.000158,2]
[396247906,1764875433348,-15466.88040085,0.000158,2]
[396247907,1764875433359,-6069.1,0.000158,2]
[396247908,1764875433370,-538.65690466,0.000158,2]
[396247909,1764875433423,-1023.16132915,0.000158,2]
[396247910,1764875433434,-413.22321426,0.000158,2]
[396247911,1764875433443,-120.12318973,0.000158,2]
[396247912,1764875433455,-232.95359131,0.000158,2]
[396247913,1764875433469,-147.84390436,0.000158,2]
[396247914,1764875433502,-265.84703492,0.000158,2]
[396247915,1764875433513,-500.0,0.000158,2]
[396247916,1764875433527,-86.30906072,0.000158,2]
[396247917,1764875433539,-749.29911782,0.000158,2]
[396247918,1764875433550,-4173.61410115,0.000158,2]
[396247919,1764875433560,-9985.72717824,0.000158,2]
[396247920,1764875433571,-1768.82981964,0.000158,2]
[396247921,1764875433583,-705.19727309,0.000158,2]
[396247930,1764875438117,-227.600827,0.00015422,2]
[396247931,1764875438127,-1594.4041495,0.000157,2]
[396247932,1764875438137,-287999.72377766,0.000158,2]
[396247933,1764875438149,-168695.51989017,0.000158,2]
[396247934,1764875438160,-23722.05651881,0.000158,2]
[396247935,1764875438173,-30107.18955824,0.000158,2]
[396247936,1764875438185,-1439.312,0.000158,2]
[396247937,1764875438227,-32484.31301816,0.000158,2]
[396247938,1764875438239,-383.30259869,0.000158,2]
[396247939,1764875438251,-856.37240893,0.000158,2]
[396248026,1764875439947,-1299.42556333,0.000158,2]
[396248027,1764875439958,-393.75864082,0.000158,2]
[396248028,1764875440000,-200159.27175422,0.000158,2]
[396248029,1764875440011,-2500.0,0.000158,2]
[396248030,1764875440020,-162.76159357,0.00015873,2]
[396248031,1764875440030,-501.4245699,0.00015873,2]
[396248032,1764875440039,-500.0,0.00015873,2]
[396248033,1764875440049,-300.93445897,0.00015873,2]
[396248034,1764875440058,-429.24017763,0.00015873,2]
[396248036,1764875440067,-500.0,0.00015873,2]
[396248037,1764875440077,-500.0,0.00015873,2]
[396248039,1764875440087,-500.0,0.00015899,2]
[396248041,1764875440097,-500.0,0.00015899,2]
[396248042,1764875440106,-500.0,0.00015899,2]
[396248043,1764875440116,-8613.06467827,0.00015899,2]
[396248044,1764875440127,-500.0,0.00015899,2]
[396248045,1764875440137,-510.42176971,0.00015899,2]
[396248046,1764875440149,-500.0,0.00015899,2]
[396248047,1764875440159,-500.0,0.00015899,2]
[396248048,1764875440168,-500.0,0.00015899,2]
[396248049,1764875440177,-500.0,0.00015899,2]
[396248050,1764875440187,-33414.4842,0.000159,2]
[396248051,1764875440196,-5336.8454,0.000159,2]
[396248052,1764875440207,-600.0,0.000159,2]
[396248053,1764875440216,-510.70545985,0.00015999,2]
[396248054,1764875440226,-500.0,0.00016099,2]
[396248055,1764875440235,-500.0,0.00016099,2]
[396248056,1764875440246,-500.0,0.00016099,2]
[396248057,1764875440257,-500.0,0.00016099,2]
[396248058,1764875440268,-500.0,0.00016099,2]
[396248059,1764875440279,-588.24188777,0.00016099,2]
[396248060,1764875440291,-500.0,0.00016099,2]
[396248061,1764875440302,-501.89145064,0.00016099,2]
[396248062,1764875440313,-383.51,0.00016099,2]
[396248063,1764875440324,-500.0,0.00016199,2]
[396248064,1764875440335,-500.0,0.00016199,2]
[396248065,1764875440345,-500.0,0.00016199,2]
[396248066,1764875440355,-15372.39,0.00016339,2]
[396248067,1764875440365,-200.0,0.00016361,2]
[396248068,1764875440374,-383.51,0.00016373,2]
[396248069,1764875440384,-748.0,0.00016411,2]
[396248070,1764875440393,-383.51,0.00016647,2]
[396248071,1764875440403,-383.51,0.00016921,2]
[396248072,1764875440413,-500.0,0.00016999,2]
[396248073,1764875440424,-500.0,0.00016999,2]
[396248074,1764875440433,-500.0,0.00016999,2]
[396248075,1764875440443,-500.0,0.00016999,2]
[396248076,1764875440453,-500.0,0.00016999,2]
[396248077,1764875440465,-277.0,0.00017157,2]
[396248078,1764875440475,-383.55,0.00017195,2]
[396248079,1764875440485,-406.0,0.00017276,2]
[396248080,1764875440495,-1200.0,0.00017363,2]
[396248081,1764875440504,-4922.91321896,0.00017589,2]
[396248082,1764875440513,-150.0,0.00017946,2]
[396248083,1764875440523,-500.0,0.00017999,2]
[396248084,1764875440534,-500.0,0.00017999,2]
[396248085,1764875440544,-580.31967944,0.00017999,2]
[396248086,1764875440554,-4922.91321896,0.00019378,2]
[396248087,1764875440563,-1491.81,0.00019428,2]
[396248088,1764875440572,-355.55996647,0.00019441,2]
[396248089,1764875440583,-353.07678097,0.00019505,2]
[396248090,1764875440592,-1971.63300449,0.000197,2]
[396248091,1764875440602,-1985.0,0.000197,2]
[396248092,1764875440612,-409.66,0.00020187,2]
[396248093,1764875440622,-277.35679052,0.00020244,2]
[396248094,1764875440632,-316.82990914,0.0002103,2]
[396248095,1764875440641,-4922.91321896,0.00021167,2]
[396248096,1764875440651,-287.61899177,0.00021613,2]
[396248097,1764875440661,-5000.0,0.00021918,2]
[396248098,1764875440670,-151.0,0.00022029,2]
[396248100,1764875440680,-1592.44,0.00022562,2]
[396248102,1764875440689,-4922.91321896,0.00022956,2]
[396248104,1764875440699,-298.26089446,0.00022982,2]
[396248105,1764875440709,-353.07678097,0.00023209,2]
[396248107,1764875440719,-151.0,0.00023275,2]
[396248108,1764875440727,-1985.0,0.000234,2]
[396248109,1764875440736,-711.0,0.000239,5]
[396248110,1764875440746,-1194.0,0.00024065,2]
[396248111,1764875440756,-909.0,0.00024065,2]
[396248112,1764875440766,-309.29654756,0.00024351,2]
[396248113,1764875440776,-151.0,0.00024522,2]
[396248114,1764875440786,-1000.0,0.00024658,2]
[396248115,1764875440796,-4922.91321896,0.00024744,2]
[396248116,1764875440806,-171.67608162,0.0002479,2]
[396248117,1764875440816,-150.84,0.0002479,2]
[396248118,1764875440826,-151.0,0.00024797,7]
[396248119,1764875440835,-235.25291,0.00024797,7]
[396248120,1764875440845,-500.0,0.00024799,2]
[396248121,1764875440855,-501.70041075,0.00024799,2]
[396248122,1764875440865,-500.0,0.00024799,2]
[396248123,1764875440874,-500.0,0.00024799,2]
[396248124,1764875440883,-196.55943663,0.00024799,2]
[396248125,1764875440893,-500.0,0.00024799,2]
[396248126,1764875440902,-500.0,0.00024799,2]
[396248127,1764875440911,-500.0,0.00024799,2]
[396248128,1764875440921,-500.0,0.00024799,2]
[396248129,1764875440930,-500.0,0.00024799,2]
[396248130,1764875440939,-500.0,0.00024799,2]
[396248131,1764875440949,-500.0,0.00024799,2]
[396248132,1764875440958,-500.0,0.00024799,2]
[396248133,1764875440967,-500.0,0.00024799,2]
[396248134,1764875440977,-500.0,0.00024799,2]
[396248135,1764875440986,-500.0,0.00024799,2]
[396248136,1764875440996,-500.0,0.00024799,2]
[396248137,1764875441006,-500.0,0.00024799,2]
[396248138,1764875441015,-500.0,0.00024799,2]
[396248139,1764875441027,-500.0,0.00024799,2]
[396248140,1764875441248,-500.0,0.00024799,2]
[396248141,1764875441258,-500.0,0.00024799,2]
[396248142,1764875441268,-500.0,0.00024799,2]
[396248143,1764875441278,-500.0,0.00024799,2]
[396248144,1764875441287,-500.0,0.00024799,2]
[396248145,1764875441298,-160.4377737,0.00024799,2]
[396248146,1764875441307,-500.0,0.00024799,2]
[396248147,1764875441316,-500.0,0.00024799,2]
[396248148,1764875441326,-500.0,0.00024799,2]
[396248149,1764875441336,-500.0,0.00024799,2]
[396248150,1764875441347,-414.14648964,0.000248,2]
[396248151,1764875441355,-319615.856079,0.000248,3]
[396248152,1764875441364,-7609.90133522,0.00024889,3]
[396248153,1764875441373,-30439.6053409,0.0002489,3]
[396248154,1764875441383,-183.92257978,0.000249,2]
[396248155,1764875441392,-12981.6208976,0.000249,3]
[396248156,1764875441402,-500.0,0.0002529,2]
[396248157,1764875441411,-150.0,0.0002529,2]
[396248158,1764875441421,-500.0,0.0002529,2]
[396248159,1764875441430,-500.0,0.0002529,2]
[396248160,1764875441440,-150.0,0.0002529,2]
[396248161,1764875441449,-150.0,0.0002529,2]
[396248162,1764875441463,-150.0,0.0002529,2]
[396248163,1764875441472,-150.0,0.0002529,2]
[396248164,1764875441483,-150.0,0.0002529,2]
[396248165,1764875441492,-150.0,0.0002529,2]
[396248166,1764875441504,-150.0,0.0002529,2]
[396248167,1764875441514,-150.0,0.0002529,2]
[396248168,1764875441523,-500.0,0.00025427,2]
[396248169,1764875441536,-150.0,0.00025427,2]
[396248170,1764875441546,-500.0,0.00025427,2]
[396248171,1764875441556,-500.0,0.00025427,2]
[396248172,1764875441565,-150.0,0.00025427,2]
[396248173,1764875441575,-150.0,0.00025427,2]
[396248174,1764875441585,-200.0,0.00025427,2]
[396248175,1764875441595,-150.0,0.00025427,2]
[396248176,1764875441606,-150.0,0.00025427,2]
[396248177,1764875441617,-150.0,0.00025427,2]
[396248178,1764875441627,-150.0,0.00025427,2]
[396248179,1764875441637,-150.0,0.00025427,2]
[396248180,1764875441647,-200.0,0.00025564,2]
[396248181,1764875441657,-250.0,0.00025564,2]
[396248182,1764875441668,-350.0,0.00025564,2]
[396248183,1764875441678,-500.0,0.00025564,2]
[396248184,1764875441688,-150.0,0.00025564,2]
[396248185,1764875441698,-150.0,0.00025564,2]
[396248186,1764875441708,-200.0,0.00025564,2]
[396248187,1764875441718,-150.0,0.00025564,2]
[396248188,1764875441728,-150.0,0.00025564,2]
[396248189,1764875441738,-150.0,0.00025564,2]
[396248190,1764875441748,-500.0,0.00025701,2]
[396248191,1764875441758,-150.0,0.00025701,2]
[396248192,1764875441769,-150.0,0.00025701,2]
[396248193,1764875441781,-250.0,0.00025701,2]
[396248194,1764875441791,-150.0,0.00025701,2]
[396248195,1764875441802,-150.0,0.00025701,2]
[396248196,1764875441811,-409.07573822,0.0002572,2]
[396248197,1764875441821,-151.0,0.00025768,2]
[396248198,1764875441831,-584.0,0.00025838,2]
[396248199,1764875441840,-150.0,0.00025838,2]
[396248200,1764875441850,-150.0,0.00025838,2]
[396248201,1764875441860,-150.0,0.00025838,2]
[396248202,1764875441869,-227.14547934,0.00025838,2]
[396248203,1764875441879,-250.0,0.00025975,2]
[396248204,1764875441890,-224.0,0.00025975,2]
[396248205,1764875441899,-220.0,0.00025975,2]
[396248206,1764875441908,-316.82990914,0.00026286,2]
[396248207,1764875441918,-4922.91321896,0.00026533,2]
[396248208,1764875441928,-409.66,0.00026676,2]
[396248209,1764875441938,-353.07678097,0.00026914,2]
[396248210,1764875441948,-151.0,0.00027015,2]
[396248211,1764875441957,-1194.0,0.00027065,2]
[396248212,1764875441968,-909.0,0.00027065,2]
[396248213,1764875441978,-4703.0,0.000271,2]
[396248214,1764875441991,-1491.81,0.000272,2]
[396248215,1764875442002,-500.0,0.00027397,14]
[396248216,1764875442012,-300.0,0.00027397,2]
[396248217,1764875442023,-150.0,0.00027397,5]
[396248218,1764875442033,-414.14648964,0.00027622,2]
[396248219,1764875442043,-250.0,0.00027945,5]
[396248220,1764875442054,-151.0,0.00028261,2]
[396248221,1764875442064,-4922.91321896,0.00028322,2]
[396248222,1764875442074,-350.0,0.00028493,5]
[396248223,1764875442083,-150.0,0.000288,4]
[396248224,1764875442093,-150.0,0.000288,4]
[396248225,1764875442103,-150.0,0.000288,4]
[396248226,1764875442113,-150.0,0.000288,4]
[396248227,1764875442123,-150.0,0.000288,4]
[396248228,1764875442133,-242.20759846,0.000288,4]
[396248229,1764875442143,-150.0,0.000288,4]
[396248230,1764875442153,-150.0,0.000288,4]
[396248231,1764875442163,-150.0,0.000288,4]
[396248232,1764875442172,-150.0,0.000288,4]
[396248233,1764875442182,-150.0,0.000288,4]
[396248234,1764875442195,-152.51466941,0.000288,4]
[396248235,1764875442205,-150.0,0.00029013,7]
[396248236,1764875442216,-547.09695169,0.00029041,5]
[396248237,1764875442226,-150.0,0.00029046,7]
[396248238,1764875442236,-150.0,0.00029156,7]
[396248239,1764875442246,-41.38741443,0.00029227,7]
[396248240,1764875442310,-108.61258557,0.00029227,7]
[396248241,1764875442319,-150.0,0.00029292,7]
[396248242,1764875442330,-150.0,0.00029333,7]
[396248243,1764875442341,-150.0,0.00029333,7]
[396248244,1764875442350,-150.0,0.0002944,7]
[396248245,1764875442360,-151.0,0.00029507,2]
[396248246,1764875442373,-150.0,0.00029511,7]
[396248247,1764875442382,-150.0,0.00029538,7]
[396248248,1764875442392,-150.0,0.000296,7]
[396248249,1764875442402,-150.0,0.000296,7]
[396248250,1764875442412,-1000.0,0.000296,2]
[396248251,1764875442422,-150.0,0.00029653,7]
[396248252,1764875442431,-150.0,0.00029785,7]
[396248253,1764875442441,-150.0,0.00029867,7]
[396248254,1764875442451,-150.0,0.00029867,7]
[396248255,1764875442463,-150.0,0.00029867,7]
[396248256,1764875442473,-150.0,0.00029867,7]
[396248257,1764875442482,-150.0,0.00030031,7]
[396248258,1764875442492,-1194.0,0.00030065,2]
[396248259,1764875442502,-909.0,0.00030065,2]
[396248260,1764875442512,-150.0,0.0003008,7]
[396248261,1764875442521,-4922.91321896,0.00030111,2]
[396248262,1764875442534,-150.0,0.00030222,7]
[396248263,1764875442544,-150.0,0.00030277,7]
[396248264,1764875442554,-150.0,0.00030293,7]
[396248265,1764875442568,-500.0,0.00030356,14]
[396248266,1764875442578,-500.0,0.00030356,14]
[396248267,1764875442588,-150.0,0.000304,7]
[396248268,1764875442597,-150.0,0.000304,7]
[396248269,1764875442607,-150.0,0.000304,7]
[396248270,1764875442617,-150.0,0.000304,7]
[396248271,1764875442627,-414.14648964,0.00030444,2]
[396248272,1764875442637,-150.0,0.00030507,7]
[396248273,1764875442646,-150.0,0.00030523,7]
[396248274,1764875442656,-150.0,0.00030578,7]
[396248275,1764875442667,-353.07678097,0.00030618,2]
[396248276,1764875442677,-150.0,0.0003072,7]
[396248277,1764875442687,-151.0,0.00030751,7]
[396248278,1764875442697,-151.0,0.00030754,2]
[396248279,1764875442707,-150.0,0.00030769,7]
[396248280,1764875442717,-150.0,0.00030916,2]
[396248281,1764875442727,-150.0,0.00030933,7]
[396248282,1764875442736,-150.0,0.00030933,7]
[396248283,1764875442746,-150.0,0.00030933,7]
[396248284,1764875442755,-150.0,0.00030933,7]
[396248285,1764875442765,-150.0,0.00031015,7]
[396248286,1764875442775,-950.35793141,0.0003104,2]
[396248287,1764875442785,-150.0,0.00031147,7]
[396248289,1764875442794,-500.0,0.00031178,14]
[396248290,1764875442803,-150.0,0.000312,7]
[396248291,1764875442813,-150.0,0.000312,7]
[396248292,1764875442822,-1000.0,0.000312,2]
[396248293,1764875442832,-150.0,0.00031262,7]
[396248294,1764875442841,-150.0,0.00031289,7]
[396248295,1764875442850,-150.0,0.0003136,7]
[396248296,1764875442860,-168.0,0.00031394,2]
[396248297,1764875442869,-150.0,0.00031467,7]
[396248298,1764875442879,-150.0,0.00031467,7]
[396248300,1764875442889,-480.06,0.00031507,2]
[396248301,1764875442898,-702.98,0.00031507,2]
[396248302,1764875442908,-480.06,0.00031507,2]
[396248303,1764875442918,-480.06,0.00031507,2]
[396248304,1764875442927,-480.06,0.00031507,2]
[396248305,1764875442939,-480.06,0.00031507,2]
[396248306,1764875442949,-480.06,0.00031507,2]
[396248307,1764875442958,-480.06,0.00031507,2]
[396248308,1764875442967,-480.06,0.00031507,2]
[396248309,1764875442977,-480.06,0.00031507,2]
[396248310,1764875442986,-480.06,0.00031507,2]
[396248311,1764875442997,-480.06,0.00031507,2]
[396248313,1764875443007,-150.0,0.00031508,7]
[396248314,1764875443016,-150.0,0.00031573,7]
[396248315,1764875443025,-1000.0,0.00031613,2]
[396248316,1764875443035,-150.0,0.00031644,7]
[396248317,1764875443044,-150.0,0.00031754,7]
[396248318,1764875443055,-150.0,0.00031787,7]
[396248319,1764875443065,-1900.0,0.00031839,3]
[396248320,1764875443075,-553.64373807,0.00031839,3]
[396248321,1764875443085,-500.0,0.00031839,3]
[396248322,1764875443095,-350.0,0.00031839,3]
[396248323,1764875443105,-500.0,0.00031839,3]
[396248324,1764875443116,-500.0,0.00031839,3]
[396248325,1764875443126,-500.0,0.00031839,3]
[396248326,1764875443135,-500.0,0.00031839,3]
[396248327,1764875443145,-500.0,0.00031839,3]
[396248328,1764875443154,-500.0,0.00031839,3]
[396248329,1764875443164,-500.0,0.00031839,3]
[396248330,1764875443174,-500.0,0.00031839,3]
[396248331,1764875443183,-1000.0,0.00031839,3]
[396248332,1764875443193,-1000.0,0.00031839,3]
[396248333,1764875443203,-1000.0,0.00031839,3]
[396248334,1764875443214,-200.0,0.00031839,3]
[396248335,1764875443223,-1000.0,0.00031839,3]
[396248336,1764875443233,-200.0,0.00031839,3]
[396248337,1764875443243,-200.0,0.00031839,3]
[396248338,1764875443253,-1000.0,0.00031839,3]
[396248339,1764875443263,-200.0,0.00031839,3]
[396248340,1764875443272,-1000.0,0.00031839,3]
[396248341,1764875443283,-1000.0,0.00031839,3]
[396248342,1764875443293,-1000.0,0.00031839,3]
[396248343,1764875443303,-1000.0,0.00031839,3]
[396248344,1764875443313,-500.0,0.00031839,3]
[396248345,1764875443332,-1000.0,0.00031839,3]
[396248346,1764875443343,-1000.0,0.00031839,3]
[396248347,1764875443353,-1000.0,0.00031887,2]
[396248348,1764875443364,-797.666,0.000319,120]
[396248349,1764875443374,-1000.0,0.000319,2]
[396248350,1764875443385,-10000.0,0.000319,2]
[396248351,1764875443395,-3013.0413,0.000319,2]
[396248352,1764875443405,-4922.91321896,0.000319,2]
[396248353,1764875443416,-16424.05453541,0.000319,2]
[396248354,1764875443428,-1494.1315996,0.000319,2]
[396248355,1764875443438,-612.77260274,0.000319,2]
[396248356,1764875443449,-151.0,0.00031997,7]
[396248357,1764875443462,-300.0,0.00031999,10]
[396248358,1764875443473,-150.0,0.00032,7]
[396248360,1764875443484,-150.0,0.00032,7]
[396248361,1764875443495,-150.0,0.00032,7]
[396248362,1764875443504,-150.00000001,0.00032,7]
[396248363,1764875443515,-150.0,0.00032,7]
[396248364,1764875443524,-150.0,0.00032,7]
[396248365,1764875443533,-150.0,0.00032,7]
[396248366,1764875443546,-105792.86135254,0.00032,2]
[396248367,1764875444416,-746.71567297,0.00032,2]
[396248368,1764875444427,-1222.38892308,0.00032,2]
[396248369,1764875444437,-227.10607692,0.00032,2]
[396248370,1764875444451,-38530.72014436,0.00032,2]
[396248371,1764875444464,-1866.87924424,0.00032,2]
[396248372,1764875444475,-675.17233395,0.00032,2]
[396248373,1764875444486,-1891.8991495,0.00032,2]
[396248378,1764875446350,-336.54278996,0.000159,2]
[396248379,1764875446360,-509.353,0.000248,30]
[396248380,1764875446370,-2042.5859113,0.00032,2]
[396248381,1764875446381,-7173.84954919,0.00032,2]
[396248382,1764875446440,-178.54270679,0.00032,2]